[Event "*** Titled Tuesday Blitz"]
[Site "Chess.com"]
[Date "2020.10.20"]
[Round "1"]
[White "davidkalashian"]
[Black "gumimis"]
[Result "1-0"]
[WhiteElo "2605"]
[BlackElo "2283"]
[TimeControl "180+1"]
[EndTime "10:06:15 PDT"]
[Termination "davidkalashian won by checkmate"]

1. d4 {[%clk 0:02:47]} 1... Nf6 {[%clk 0:02:57.2]} 2. c4 {[%clk 0:02:46.2]} 2...
g6 {[%clk 0:02:55.9]} 3. Nc3 {[%clk 0:02:44]} 3... Bg7 {[%clk 0:02:54.6]} 4. e4
{[%clk 0:02:44.5]} 4... O-O {[%clk 0:02:54.9]} 5. Be2 {[%clk 0:02:45]} 5... d6
{[%clk 0:02:55]} 6. Bg5 {[%clk 0:02:44.1]} 6... h6 {[%clk 0:02:52]} 7. Be3
{[%clk 0:02:43]} 7... e5 {[%clk 0:02:43.6]} 8. d5 {[%clk 0:02:41.4]} 8... a5
{[%clk 0:02:40.5]} 9. g4 {[%clk 0:02:37.8]} 9... Na6 {[%clk 0:02:37.5]} 10. f3
{[%clk 0:02:37.5]} 10... c6 {[%clk 0:02:34.6]} 11. Qd2 {[%clk 0:02:36.6]} 11...
cxd5 {[%clk 0:02:34.6]} 12. cxd5 {[%clk 0:02:33.8]} 12... Kh7 {[%clk 0:02:24.3]}
13. h4 {[%clk 0:02:32.1]} 13... Ne8 {[%clk 0:02:22.2]} 14. h5 {[%clk 0:02:31.3]}
14... g5 {[%clk 0:02:21.9]} 15. Nh3 {[%clk 0:02:30.4]} 15... f6 {[%clk 0:02:20]}
16. Nf2 {[%clk 0:02:29.7]} 16... Rf7 {[%clk 0:02:16.6]} 17. O-O {[%clk
0:02:24.8]} 17... b6 {[%clk 0:02:03]} 18. Rac1 {[%clk 0:02:20.8]} 18... Nec7
{[%clk 0:02:00.6]} 19. Nb5 {[%clk 0:02:17.8]} 19... Nxb5 {[%clk 0:01:57.3]} 20.
Bxb5 {[%clk 0:02:18.7]} 20... Bb7 {[%clk 0:01:53.5]} 21. a3 {[%clk 0:02:13.9]}
21... Nc5 {[%clk 0:01:49]} 22. Rc3 {[%clk 0:01:54.1]} 22... Rc7 {[%clk
0:01:43.3]} 23. b4 {[%clk 0:01:45.1]} 23... axb4 {[%clk 0:01:41.7]} 24. axb4
{[%clk 0:01:45]} 24... Na6 {[%clk 0:01:32.2]} 25. Bxb6 {[%clk 0:01:40.4]} 25...
Rac8 {[%clk 0:01:19]} 26. Bxc7 {[%clk 0:01:17.6]} 26... Rxc7 {[%clk 0:01:15.2]}
27. Rfc1 {[%clk 0:01:08.5]} 27... Rxc3 {[%clk 0:01:13.1]} 28. Qxc3 {[%clk
0:01:07.4]} 28... Qb6 {[%clk 0:01:09.7]} 29. Bd7 {[%clk 0:01:02.3]} 29... Bf8
{[%clk 0:00:59.6]} 30. Bc8 {[%clk 0:00:50.2]} 30... Bxc8 {[%clk 0:00:49.5]} 31.
Qxc8 {[%clk 0:00:51.1]} 31... Bg7 {[%clk 0:00:42.1]} 32. Qf5+ {[%clk 0:00:49.2]}
32... Kg8 {[%clk 0:00:40]} 33. Rc8+ {[%clk 0:00:46.4]} 33... Bf8 {[%clk
0:00:40.3]} 34. Qg6+ {[%clk 0:00:45.5]} 34... Kh8 {[%clk 0:00:40.9]} 35. Rxf8#
{[%clk 0:00:44.6]} 1-0

[Event "*** Titled Tuesday Blitz"]
[Site "Chess.com"]
[Date "2020.10.20"]
[Round "1"]
[White "ajgreen"]
[Black "kuban1991"]
[Result "0-1"]
[WhiteElo "2399"]
[BlackElo "2806"]
[TimeControl "180+1"]
[EndTime "10:06:17 PDT"]
[Termination "kuban1991 won by resignation"]

1. e4 {[%clk 0:02:59.3]} 1... e6 {[%clk 0:02:59.9]} 2. d4 {[%clk 0:02:59.6]}
2... d5 {[%clk 0:03:00.8]} 3. Nc3 {[%clk 0:03:00.1]} 3... Bb4 {[%clk 0:03:00.5]}
4. e5 {[%clk 0:03:00.7]} 4... c5 {[%clk 0:03:00.3]} 5. Bd2 {[%clk 0:03:01.3]}
5... Nc6 {[%clk 0:02:59.8]} 6. Nb5 {[%clk 0:03:00.6]} 6... Bxd2+ {[%clk
0:03:00.7]} 7. Qxd2 {[%clk 0:03:01.5]} 7... Nxd4 {[%clk 0:03:01.3]} 8. Nxd4
{[%clk 0:03:01.6]} 8... cxd4 {[%clk 0:03:02.2]} 9. f4 {[%clk 0:03:02.2]} 9...
Ne7 {[%clk 0:03:02.3]} 10. Nf3 {[%clk 0:03:02.7]} 10... O-O {[%clk 0:03:02.7]}
11. O-O-O {[%clk 0:03:02.6]} 11... Nc6 {[%clk 0:03:02.3]} 12. Nxd4 {[%clk
0:03:02.7]} 12... f6 {[%clk 0:03:00.6]} 13. exf6 {[%clk 0:03:02.8]} 13... Qxf6
{[%clk 0:03:00]} 14. g3 {[%clk 0:03:02.4]} 14... Bd7 {[%clk 0:02:57.3]} 15. Bg2
{[%clk 0:02:57.9]} 15... Rac8 {[%clk 0:02:55.6]} 16. Kb1 {[%clk 0:02:55.8]}
16... Be8 {[%clk 0:02:45.8]} 17. Rhe1 {[%clk 0:02:53]} 17... Nxd4 {[%clk
0:02:44.9]} 18. Qxd4 {[%clk 0:02:51.7]} 18... Bg6 {[%clk 0:02:44.7]} 19. Re2
{[%clk 0:02:46.6]} 19... Rc6 {[%clk 0:02:35.2]} 20. Qxf6 {[%clk 0:02:41.2]}
20... gxf6 {[%clk 0:02:34.7]} 21. Kc1 {[%clk 0:02:33.7]} 21... Rfc8 {[%clk
0:02:31.7]} 22. c3 {[%clk 0:02:33.9]} 22... b5 {[%clk 0:02:30]} 23. a3 {[%clk
0:02:27.1]} 23... a5 {[%clk 0:02:28.6]} 24. Rd4 {[%clk 0:02:27]} 24... h5 {[%clk
0:02:17]} 25. Bf3 {[%clk 0:02:06.8]} 25... Kg7 {[%clk 0:02:11.5]} 26. Kd2 {[%clk
0:01:53]} 26... Rb8 {[%clk 0:02:06.7]} 27. Ke1 {[%clk 0:01:43.2]} 27... Kf7
{[%clk 0:02:02.8]} 28. Kf2 {[%clk 0:01:35.4]} 28... Rc4 {[%clk 0:02:02.4]} 29.
Red2 {[%clk 0:01:27.4]} 29... Ke7 {[%clk 0:01:55]} 30. Kg2 {[%clk 0:01:26.7]}
30... Kd6 {[%clk 0:01:53.5]} 31. Kh3 {[%clk 0:01:23.6]} 31... Kc5 {[%clk
0:01:52.9]} 32. Kh4 {[%clk 0:01:22.6]} 32... b4 {[%clk 0:01:49.1]} 33. axb4+
{[%clk 0:01:17.6]} 33... axb4 {[%clk 0:01:49.1]} 34. Rxc4+ {[%clk 0:01:16.1]}
34... Kxc4 {[%clk 0:01:39.5]} 35. cxb4 {[%clk 0:01:07.5]} 35... Rxb4 {[%clk
0:01:35.9]} 36. Bxh5 {[%clk 0:01:07.3]} 36... Bxh5 {[%clk 0:01:35.8]} 37. Kxh5
{[%clk 0:01:07.6]} 37... e5 {[%clk 0:01:36.4]} 38. fxe5 {[%clk 0:00:57.4]} 38...
fxe5 {[%clk 0:01:37.3]} 39. g4 {[%clk 0:00:58]} 39... e4 {[%clk 0:01:37.5]} 40.
g5 {[%clk 0:00:58.3]} 40... e3 {[%clk 0:01:38]} 41. Rg2 {[%clk 0:00:58]} 41...
Kd3 {[%clk 0:01:31.7]} 42. g6 {[%clk 0:00:57.7]} 42... e2 {[%clk 0:01:31.7]} 43.
Rg1 {[%clk 0:00:54.7]} 43... Kd2 {[%clk 0:01:25.4]} 44. g7 {[%clk 0:00:53.4]}
44... Rb8 {[%clk 0:01:23.6]} 45. b4 {[%clk 0:00:50.4]} 45... d4 {[%clk
0:01:23.2]} 46. b5 {[%clk 0:00:50.4]} 46... e1=Q {[%clk 0:01:22.6]} 47. Rxe1
{[%clk 0:00:50.3]} 47... Kxe1 {[%clk 0:01:23.5]} 48. Kg6 {[%clk 0:00:45.2]}
48... d3 {[%clk 0:01:23]} 49. Kf7 {[%clk 0:00:44]} 49... d2 {[%clk 0:01:22.8]}
0-1

[Event "*** Titled Tuesday Blitz"]
[Site "Chess.com"]
[Date "2020.10.20"]
[Round "1"]
[White "Abdimalik_Abdisalimov"]
[Black "scandalgod"]
[Result "1-0"]
[WhiteElo "2745"]
[BlackElo "2372"]
[TimeControl "180+1"]
[EndTime "10:06:17 PDT"]
[Termination "Abdimalik_Abdisalimov won by resignation"]

1. d4 {[%clk 0:03:00.9]} 1... d5 {[%clk 0:02:59.6]} 2. c4 {[%clk 0:03:00.9]}
2... c6 {[%clk 0:03:00]} 3. cxd5 {[%clk 0:03:01]} 3... cxd5 {[%clk 0:02:59.6]}
4. Bf4 {[%clk 0:03:01.9]} 4... Nc6 {[%clk 0:02:58]} 5. e3 {[%clk 0:03:02.3]}
5... Nf6 {[%clk 0:02:58]} 6. Nc3 {[%clk 0:03:02.6]} 6... a6 {[%clk 0:02:57.8]}
7. Bd3 {[%clk 0:03:02.7]} 7... Bg4 {[%clk 0:02:57.5]} 8. Qb3 {[%clk 0:03:02.5]}
8... Na5 {[%clk 0:02:56.7]} 9. Qc2 {[%clk 0:03:02.7]} 9... Rc8 {[%clk
0:02:55.7]} 10. Nge2 {[%clk 0:03:00.9]} 10... e6 {[%clk 0:02:49.4]} 11. O-O
{[%clk 0:02:59.4]} 11... Bd6 {[%clk 0:02:49]} 12. Bxd6 {[%clk 0:02:25.5]} 12...
Qxd6 {[%clk 0:02:47.5]} 13. Nb5 {[%clk 0:02:25.4]} 13... Rxc2 {[%clk 0:02:31]}
14. Nxd6+ {[%clk 0:02:24.3]} 14... Ke7 {[%clk 0:02:21.2]} 15. Bxc2 {[%clk
0:02:25.2]} 15... Bxe2 {[%clk 0:02:01.4]} 16. Rfe1 {[%clk 0:02:24.6]} 16... Bh5
{[%clk 0:01:59.9]} 17. b4 {[%clk 0:02:24.2]} 17... Kxd6 {[%clk 0:01:42.7]} 18.
bxa5 {[%clk 0:02:21.5]} 18... Rc8 {[%clk 0:01:42.4]} 19. Rec1 {[%clk 0:02:17.5]}
19... Rc3 {[%clk 0:01:35.5]} 20. Bb3 {[%clk 0:02:11.8]} 20... Ne4 {[%clk
0:01:25.9]} 21. f3 {[%clk 0:02:11.3]} 21... Rxc1+ {[%clk 0:01:19.8]} 22. Rxc1
{[%clk 0:02:12.2]} 22... Nd2 {[%clk 0:01:16.1]} 23. Rd1 {[%clk 0:01:53]} 23...
Nxb3 {[%clk 0:01:12.8]} 24. axb3 {[%clk 0:01:53.9]} 24... Bg6 {[%clk 0:01:13.2]}
25. Rc1 {[%clk 0:01:53.8]} 25... Kd7 {[%clk 0:01:10.1]} 26. Kf2 {[%clk
0:01:53.3]} 26... Bd3 {[%clk 0:01:10.2]} 27. h4 {[%clk 0:01:47.7]} 27... Bb5
{[%clk 0:01:08.4]} 28. h5 {[%clk 0:01:45.3]} 28... h6 {[%clk 0:01:04.6]} 29. g4
{[%clk 0:01:45.5]} 29... f6 {[%clk 0:01:01.4]} 30. Rc3 {[%clk 0:01:40]} 30...
Bc6 {[%clk 0:01:00.5]} 31. Kg3 {[%clk 0:01:33.7]} 31... e5 {[%clk 0:00:59.5]}
32. f4 {[%clk 0:01:32.5]} 32... Ke6 {[%clk 0:00:59.3]} 33. Kh4 {[%clk
0:01:28.9]} 33... e4 {[%clk 0:00:46.8]} 34. Rc1 {[%clk 0:01:17.5]} 34... Ke7
{[%clk 0:00:34.7]} 35. g5 {[%clk 0:01:01]} 1-0

[Event "*** Titled Tuesday Blitz"]
[Site "Chess.com"]
[Date "2020.10.20"]
[Round "1"]
[White "TheBigBoss04"]
[Black "Ural_bogatyr"]
[Result "1/2-1/2"]
[WhiteElo "2733"]
[BlackElo "2379"]
[TimeControl "180+1"]
[EndTime "10:06:20 PDT"]
[Termination "Game drawn by repetition"]

1. c4 {[%clk 0:02:54.5]} 1... Nf6 {[%clk 0:02:59.6]} 2. Nc3 {[%clk 0:02:52.8]}
2... e6 {[%clk 0:02:59.8]} 3. Nf3 {[%clk 0:02:52.3]} 3... d5 {[%clk 0:02:59.3]}
4. d4 {[%clk 0:02:52]} 4... c6 {[%clk 0:02:58.5]} 5. Bg5 {[%clk 0:02:43.8]} 5...
h6 {[%clk 0:02:56.1]} 6. Bxf6 {[%clk 0:02:42.9]} 6... Qxf6 {[%clk 0:02:57]} 7.
e3 {[%clk 0:02:43]} 7... g6 {[%clk 0:02:57]} 8. Be2 {[%clk 0:02:35.9]} 8... Bg7
{[%clk 0:02:56.9]} 9. O-O {[%clk 0:02:36.6]} 9... O-O {[%clk 0:02:56]} 10. Rc1
{[%clk 0:02:34.5]} 10... Nd7 {[%clk 0:02:53.3]} 11. h3 {[%clk 0:02:25.7]} 11...
dxc4 {[%clk 0:02:50.5]} 12. Bxc4 {[%clk 0:02:26.6]} 12... e5 {[%clk 0:02:51]}
13. d5 {[%clk 0:02:26.7]} 13... Nb6 {[%clk 0:02:49.5]} 14. Bb3 {[%clk
0:02:26.8]} 14... cxd5 {[%clk 0:02:48.1]} 15. Nxd5 {[%clk 0:02:26.2]} 15... Nxd5
{[%clk 0:02:47.7]} 16. Bxd5 {[%clk 0:02:26.2]} 16... Be6 {[%clk 0:02:39.5]} 17.
Qb3 {[%clk 0:02:02.8]} 17... Bxd5 {[%clk 0:02:19.5]} 18. Qxd5 {[%clk 0:02:03.7]}
18... Qb6 {[%clk 0:02:18.4]} 19. Nxe5 {[%clk 0:01:45.4]} 19... Qxb2 {[%clk
0:02:10.4]} 20. Nxg6 {[%clk 0:01:22.1]} 20... Rfd8 {[%clk 0:02:05.6]} 21. Ne7+
{[%clk 0:00:51.9]} 21... Kf8 {[%clk 0:02:04.4]} 22. Qe4 {[%clk 0:00:51.7]} 22...
Re8 {[%clk 0:01:52.6]} 23. Rc7 {[%clk 0:00:49.5]} 23... Qe5 {[%clk 0:01:31]} 24.
Qxb7 {[%clk 0:00:32.7]} 24... Rab8 {[%clk 0:01:21.8]} 25. Qxa7 {[%clk
0:00:31.2]} 25... Ra8 {[%clk 0:01:19.5]} 26. Qb7 {[%clk 0:00:28]} 26... Rab8
{[%clk 0:01:19.6]} 27. Qa7 {[%clk 0:00:14.7]} 27... Ra8 {[%clk 0:01:13.5]} 28.
Qb7 {[%clk 0:00:05.8]} 28... Rab8 {[%clk 0:00:49.6]} 29. Qa7 {[%clk 0:00:06]}
1/2-1/2

[Event "*** Titled Tuesday Blitz"]
[Site "Chess.com"]
[Date "2020.10.20"]
[Round "1"]
[White "djano"]
[Black "teacher4chess"]
[Result "0-1"]
[WhiteElo "2460"]
[BlackElo "2045"]
[TimeControl "180+1"]
[EndTime "10:06:21 PDT"]
[Termination "teacher4chess won by resignation"]

1. d4 {[%clk 0:03:00.9]} 1... d5 {[%clk 0:02:58.4]} 2. Nf3 {[%clk 0:03:01.1]}
2... Nf6 {[%clk 0:02:58.6]} 3. Bf4 {[%clk 0:03:01.5]} 3... c6 {[%clk 0:02:54.9]}
4. e3 {[%clk 0:03:00.7]} 4... Bg4 {[%clk 0:02:53.5]} 5. Nbd2 {[%clk 0:03:00.6]}
5... e6 {[%clk 0:02:47.4]} 6. Bd3 {[%clk 0:02:58.5]} 6... Bd6 {[%clk 0:02:46.5]}
7. Bg3 {[%clk 0:02:58.7]} 7... O-O {[%clk 0:02:44.6]} 8. c4 {[%clk 0:02:57.9]}
8... Bh5 {[%clk 0:02:26]} 9. Qc2 {[%clk 0:02:56.1]} 9... Bg6 {[%clk 0:02:22.9]}
10. Bxg6 {[%clk 0:02:53.7]} 10... hxg6 {[%clk 0:02:22.4]} 11. c5 {[%clk
0:02:52.4]} 11... Bc7 {[%clk 0:02:02.1]} 12. Ne5 {[%clk 0:02:50.7]} 12... Nbd7
{[%clk 0:02:01.2]} 13. f4 {[%clk 0:02:50.8]} 13... Nh5 {[%clk 0:01:57.9]} 14.
Bf2 {[%clk 0:02:50.9]} 14... Nxe5 {[%clk 0:01:51]} 15. fxe5 {[%clk 0:02:50.5]}
15... Qg5 {[%clk 0:01:47.3]} 16. O-O {[%clk 0:02:38.2]} 16... f6 {[%clk
0:01:39.1]} 17. Nf3 {[%clk 0:02:37.6]} 17... Qh6 {[%clk 0:01:34.7]} 18. g4
{[%clk 0:02:34.3]} 18... fxe5 {[%clk 0:01:28.3]} 19. Nxe5 {[%clk 0:02:29.3]}
19... Nf6 {[%clk 0:00:58.9]} 20. Qxg6 {[%clk 0:02:18.4]} 20... Bxe5 {[%clk
0:00:48.3]} 21. Qxh6 {[%clk 0:02:18.2]} 21... gxh6 {[%clk 0:00:47.9]} 22. dxe5
{[%clk 0:02:18.6]} 22... Nxg4 {[%clk 0:00:48]} 23. Bh4 {[%clk 0:02:01.4]} 23...
Nxe3 {[%clk 0:00:42.2]} 24. Rf6 {[%clk 0:01:59.9]} 24... Rxf6 {[%clk 0:00:38.6]}
25. Bxf6 {[%clk 0:01:58.9]} 25... Ng4 {[%clk 0:00:31.4]} 26. Be7 {[%clk
0:01:57.2]} 26... Nxe5 {[%clk 0:00:29.6]} 27. Kh1 {[%clk 0:01:55]} 27... Kf7
{[%clk 0:00:26.4]} 28. Bd6 {[%clk 0:01:51.6]} 28... Nc4 {[%clk 0:00:25.5]} 29.
Rf1+ {[%clk 0:01:51.5]} 29... Kg7 {[%clk 0:00:22]} 30. Rg1+ {[%clk 0:01:50.3]}
30... Kh7 {[%clk 0:00:22]} 31. Be7 {[%clk 0:01:50.5]} 31... Re8 {[%clk
0:00:20.5]} 32. Bf6 {[%clk 0:01:50.8]} 32... Rg8 {[%clk 0:00:19.6]} 33. Re1
{[%clk 0:01:51.4]} 33... Rg6 {[%clk 0:00:19.1]} 34. Rxe6 {[%clk 0:01:51.1]}
34... Nd2 {[%clk 0:00:14.2]} 35. Re7+ {[%clk 0:01:47.9]} 35... Kg8 {[%clk
0:00:13.9]} 36. Be5 {[%clk 0:01:47.4]} 36... Ne4 {[%clk 0:00:13.1]} 37. h3
{[%clk 0:01:43.1]} 37... Nxc5 {[%clk 0:00:12.1]} 38. b4 {[%clk 0:01:41.8]} 38...
Nd3 {[%clk 0:00:10.1]} 39. Rxb7 {[%clk 0:01:42.4]} 39... Nxe5 {[%clk 0:00:09.6]}
0-1

[Event "*** Titled Tuesday Blitz"]
[Site "Chess.com"]
[Date "2020.10.20"]
[Round "1"]
[White "Sjakkerntobi"]
[Black "TigrVShlyape"]
[Result "0-1"]
[WhiteElo "2428"]
[BlackElo "2872"]
[TimeControl "180+1"]
[EndTime "10:06:24 PDT"]
[Termination "TigrVShlyape won by resignation"]

1. e4 {[%clk 0:02:56.3]} 1... e5 {[%clk 0:02:57.3]} 2. Nf3 {[%clk 0:02:55.9]}
2... Nc6 {[%clk 0:02:57]} 3. Bb5 {[%clk 0:02:56.4]} 3... a6 {[%clk 0:02:57.1]}
4. Ba4 {[%clk 0:02:56.6]} 4... Nf6 {[%clk 0:02:57.3]} 5. O-O {[%clk 0:02:56.9]}
5... Be7 {[%clk 0:02:57.2]} 6. Re1 {[%clk 0:02:57.4]} 6... b5 {[%clk 0:02:57.3]}
7. Bb3 {[%clk 0:02:57.9]} 7... d6 {[%clk 0:02:57.8]} 8. a4 {[%clk 0:02:56.2]}
8... Bd7 {[%clk 0:02:55.5]} 9. d3 {[%clk 0:02:45.1]} 9... O-O {[%clk 0:02:54.4]}
10. Nbd2 {[%clk 0:02:43.6]} 10... Na5 {[%clk 0:02:48.2]} 11. Ba2 {[%clk
0:02:36.3]} 11... c5 {[%clk 0:02:46.4]} 12. Nf1 {[%clk 0:02:35.6]} 12... Be6
{[%clk 0:02:22.8]} 13. Ne3 {[%clk 0:02:20.6]} 13... Qd7 {[%clk 0:02:06.6]} 14.
Nd5 {[%clk 0:02:16]} 14... Nxd5 {[%clk 0:02:01.8]} 15. exd5 {[%clk 0:02:13.2]}
15... Bf5 {[%clk 0:02:00.6]} 16. Bd2 {[%clk 0:02:04.5]} 16... b4 {[%clk
0:01:55.8]} 17. c3 {[%clk 0:01:55]} 17... bxc3 {[%clk 0:01:32.2]} 18. Bxc3
{[%clk 0:01:47.1]} 18... Nb7 {[%clk 0:01:32]} 19. b4 {[%clk 0:01:35.4]} 19...
Bf6 {[%clk 0:01:21.8]} 20. bxc5 {[%clk 0:01:29.3]} 20... Nxc5 {[%clk 0:01:21.2]}
21. d4 {[%clk 0:01:29.7]} 21... Nxa4 {[%clk 0:01:18.8]} 22. Rc1 {[%clk
0:01:18.6]} 22... Nxc3 {[%clk 0:01:17.9]} 23. Rxc3 {[%clk 0:01:19.5]} 23... e4
{[%clk 0:01:15.7]} 24. Nd2 {[%clk 0:01:17.3]} 24... Bxd4 {[%clk 0:01:14.8]} 25.
Ra3 {[%clk 0:01:12.6]} 25... e3 {[%clk 0:01:13.5]} 26. fxe3 {[%clk 0:01:12.1]}
26... Bc5 {[%clk 0:01:13]} 27. Rc3 {[%clk 0:01:10.9]} 27... Rfe8 {[%clk
0:01:11.9]} 28. Kh1 {[%clk 0:01:08.7]} 28... a5 {[%clk 0:01:11.4]} 29. e4 {[%clk
0:01:08.4]} 29... Bg4 {[%clk 0:01:10.6]} 30. Qc2 {[%clk 0:00:54.7]} 30... Bb4
{[%clk 0:01:07.9]} 31. Rg3 {[%clk 0:00:53.3]} 31... Rac8 {[%clk 0:01:05.8]} 32.
Qd3 {[%clk 0:00:51.5]} 32... Rc3 {[%clk 0:01:03.5]} 33. Qd4 {[%clk 0:00:42.9]}
33... Rxg3 {[%clk 0:01:02.7]} 34. hxg3 {[%clk 0:00:43.8]} 34... Qe7 {[%clk
0:00:56.6]} 35. Re3 {[%clk 0:00:36.2]} 35... Qg5 {[%clk 0:00:53.1]} 36. Nf3
{[%clk 0:00:26.2]} 36... Qh6+ {[%clk 0:00:51.8]} 37. Kg1 {[%clk 0:00:26.2]}
37... Bc5 {[%clk 0:00:51.3]} 0-1

[Event "*** Titled Tuesday Blitz"]
[Site "Chess.com"]
[Date "2020.10.20"]
[Round "1"]
[White "MarceloPlaya"]
[Black "Chernobay_Artem"]
[Result "1-0"]
[WhiteElo "2282"]
[BlackElo "2569"]
[TimeControl "180+1"]
[EndTime "10:06:28 PDT"]
[Termination "MarceloPlaya won on time"]

1. e4 {[%clk 0:02:58.7]} 1... e5 {[%clk 0:03:00.1]} 2. Nf3 {[%clk 0:02:55.7]}
2... Nc6 {[%clk 0:03:00.4]} 3. d4 {[%clk 0:02:53.9]} 3... exd4 {[%clk
0:03:00.3]} 4. Bc4 {[%clk 0:02:52.6]} 4... Nf6 {[%clk 0:03:00.1]} 5. Ng5 {[%clk
0:02:51.4]} 5... Ne5 {[%clk 0:02:55.8]} 6. Qxd4 {[%clk 0:02:48]} 6... Nxc4
{[%clk 0:02:50.3]} 7. Qxc4 {[%clk 0:02:47.5]} 7... d5 {[%clk 0:02:49.1]} 8. exd5
{[%clk 0:02:47.1]} 8... Qxd5 {[%clk 0:02:44.6]} 9. Qe2+ {[%clk 0:02:46.4]} 9...
Be7 {[%clk 0:02:29.2]} 10. O-O {[%clk 0:02:44]} 10... Bg4 {[%clk 0:02:17.3]} 11.
f3 {[%clk 0:02:42.1]} 11... Bf5 {[%clk 0:02:09.4]} 12. Nc3 {[%clk 0:02:39.5]}
12... Qc6 {[%clk 0:02:00.6]} 13. Bf4 {[%clk 0:02:12]} 13... h6 {[%clk
0:01:53.6]} 14. Rfe1 {[%clk 0:01:56.1]} 14... O-O {[%clk 0:01:15]} 15. Qxe7
{[%clk 0:01:53.9]} 15... hxg5 {[%clk 0:01:11.2]} 16. Bxg5 {[%clk 0:01:44.2]}
16... Rfe8 {[%clk 0:01:08.6]} 17. Qb4 {[%clk 0:01:39.4]} 17... Bxc2 {[%clk
0:01:06.8]} 18. Bxf6 {[%clk 0:01:35.2]} 18... Qxf6 {[%clk 0:01:01.6]} 19. Qxb7
{[%clk 0:01:27.3]} 19... Qd4+ {[%clk 0:00:54.6]} 20. Kh1 {[%clk 0:01:26.6]}
20... Rab8 {[%clk 0:00:48.8]} 21. Rxe8+ {[%clk 0:01:15.5]} 21... Rxe8 {[%clk
0:00:49.7]} 22. Qxc7 {[%clk 0:01:08.1]} 22... Bd1 {[%clk 0:00:15.8]} 23. Qg3
{[%clk 0:00:54.9]} 23... Qd2 {[%clk 0:00:09]} 24. Rxd1 {[%clk 0:00:52.6]} 24...
Qxb2 {[%clk 0:00:03.3]} 25. Ne4 {[%clk 0:00:51.6]} 25... f5 {[%clk 0:00:01.6]}
26. Ng5 {[%clk 0:00:41.6]} 1-0

[Event "*** Titled Tuesday Blitz"]
[Site "Chess.com"]
[Date "2020.10.20"]
[Round "1"]
[White "KarstenHansch"]
[Black "zurzan"]
[Result "1-0"]
[WhiteElo "2471"]
[BlackElo "2005"]
[TimeControl "180+1"]
[EndTime "10:06:28 PDT"]
[Termination "KarstenHansch won on time"]

1. e4 {[%clk 0:02:58.4]} 1... Nf6 {[%clk 0:02:59.3]} 2. e5 {[%clk 0:02:58.3]}
2... Nd5 {[%clk 0:02:59.2]} 3. d4 {[%clk 0:02:58.2]} 3... d6 {[%clk 0:02:59]} 4.
Nf3 {[%clk 0:02:56.4]} 4... g6 {[%clk 0:02:58.4]} 5. Bc4 {[%clk 0:02:53.4]} 5...
Nb6 {[%clk 0:02:57.6]} 6. Bb3 {[%clk 0:02:53.5]} 6... Bg7 {[%clk 0:02:57.9]} 7.
O-O {[%clk 0:02:49.1]} 7... O-O {[%clk 0:02:57.8]} 8. h3 {[%clk 0:02:45.7]} 8...
dxe5 {[%clk 0:02:57.3]} 9. Nxe5 {[%clk 0:02:45.2]} 9... N8d7 {[%clk 0:02:51.6]}
10. Nf3 {[%clk 0:02:41]} 10... c5 {[%clk 0:02:43.4]} 11. c3 {[%clk 0:02:34.3]}
11... cxd4 {[%clk 0:02:39.3]} 12. cxd4 {[%clk 0:02:35.2]} 12... e5 {[%clk
0:02:25.5]} 13. Bg5 {[%clk 0:02:28.7]} 13... Qe8 {[%clk 0:02:19]} 14. Nc3 {[%clk
0:02:17.8]} 14... h6 {[%clk 0:02:17.5]} 15. Be3 {[%clk 0:02:14.3]} 15... e4
{[%clk 0:02:07.3]} 16. Nd2 {[%clk 0:02:08.5]} 16... Nf6 {[%clk 0:02:06.9]} 17.
Qc2 {[%clk 0:01:58.5]} 17... Bf5 {[%clk 0:02:05]} 18. g4 {[%clk 0:01:53.1]}
18... Bd7 {[%clk 0:01:40.3]} 19. Ndxe4 {[%clk 0:01:50.8]} 19... Nxe4 {[%clk
0:01:38.2]} 20. Qxe4 {[%clk 0:01:50.8]} 20... Qxe4 {[%clk 0:01:18.2]} 21. Nxe4
{[%clk 0:01:51.7]} 21... Bc6 {[%clk 0:01:13.1]} 22. Nc3 {[%clk 0:01:46.1]} 22...
Rad8 {[%clk 0:01:12]} 23. Rfd1 {[%clk 0:01:41.8]} 23... Nd5 {[%clk 0:01:08.8]}
24. Rac1 {[%clk 0:01:32.8]} 24... Nxe3 {[%clk 0:01:08.1]} 25. fxe3 {[%clk
0:01:32.7]} 25... Bf3 {[%clk 0:01:06.9]} 26. Rd2 {[%clk 0:01:31.7]} 26... h5
{[%clk 0:01:06.7]} 27. gxh5 {[%clk 0:01:29.8]} 27... Bxh5 {[%clk 0:01:05.9]} 28.
Kf2 {[%clk 0:01:28.8]} 28... Rfe8 {[%clk 0:00:58.2]} 29. Nd5 {[%clk 0:01:22.7]}
29... Kf8 {[%clk 0:00:19.9]} 30. Rc7 {[%clk 0:01:16.6]} 30... Rb8 {[%clk
0:00:07]} 31. Nf4 {[%clk 0:01:02.8]} 31... Re7 {[%clk 0:00:05.5]} 32. Rxe7
{[%clk 0:01:02.4]} 32... Kxe7 {[%clk 0:00:05.4]} 33. Rc2 {[%clk 0:01:03]} 33...
f5 {[%clk 0:00:01.6]} 34. Rc7+ {[%clk 0:01:02.1]} 34... Kf6 {[%clk 0:00:01.3]}
35. Rf7+ {[%clk 0:01:02.1]} 1-0